[Event "*** SCC Grand Prix: Titled Tuesday Blitz"]
[Site "Chess.com"]
[Date "2020.07.21"]
[Round "8"]
[White "kobemagic"]
[Black "Savva09022009"]
[Result "1-0"]
[WhiteElo "2334"]
[BlackElo "2423"]
[TimeControl "180+1"]
[EndTime "11:36:16 PDT"]
[Termination "kobemagic won by resignation"]

1. d4 {[%clk 0:03:00.9]} 1... Nf6 {[%clk 0:02:56.8]} 2. Bg5 {[%clk 0:03:00.8]}
2... e6 {[%clk 0:02:57.7]} 3. e3 {[%clk 0:03:00.5]} 3... d5 {[%clk 0:02:58.1]}
4. Bd3 {[%clk 0:02:59.3]} 4... Be7 {[%clk 0:02:58.2]} 5. Nf3 {[%clk 0:02:57.6]}
5... O-O {[%clk 0:02:58.8]} 6. O-O {[%clk 0:02:57.7]} 6... c5 {[%clk 0:02:57.3]}
7. c3 {[%clk 0:02:57.7]} 7... Nc6 {[%clk 0:02:52.6]} 8. Nbd2 {[%clk 0:02:57.4]}
8... Bd6 {[%clk 0:02:47.8]} 9. e4 {[%clk 0:02:52.5]} 9... dxe4 {[%clk
0:02:46.3]} 10. Nxe4 {[%clk 0:02:51.6]} 10... Be7 {[%clk 0:02:45.1]} 11. Bxf6
{[%clk 0:02:51.9]} 11... Bxf6 {[%clk 0:02:46]} 12. Nxc5 {[%clk 0:02:51.8]} 12...
b6 {[%clk 0:02:43.3]} 13. Ne4 {[%clk 0:02:49.3]} 13... Be7 {[%clk 0:02:44.2]}
14. Qe2 {[%clk 0:02:43.4]} 14... Bb7 {[%clk 0:02:43.3]} 15. Rad1 {[%clk
0:02:43.1]} 15... Qc7 {[%clk 0:02:36.3]} 16. Rfe1 {[%clk 0:02:41.1]} 16... Rad8
{[%clk 0:02:34.2]} 17. Bb1 {[%clk 0:02:36.2]} 17... Na5 {[%clk 0:02:29.3]} 18.
Ne5 {[%clk 0:02:31.2]} 18... Bd5 {[%clk 0:02:20.6]} 19. Qh5 {[%clk 0:02:19.3]}
19... g6 {[%clk 0:02:16.8]} 20. Qh6 {[%clk 0:02:14.5]} 20... f5 {[%clk
0:02:09.1]} 21. Ng5 {[%clk 0:02:11.7]} 21... Bf6 {[%clk 0:02:08.2]} 22. Nef3
{[%clk 0:01:56.5]} 22... Nc4 {[%clk 0:01:53.2]} 23. b3 {[%clk 0:01:48.2]} 23...
Na3 {[%clk 0:01:48.1]} 24. Nxe6 {[%clk 0:01:44]} 24... Bxe6 {[%clk 0:01:46.9]}
25. Rxe6 {[%clk 0:01:44.4]} 25... Nxb1 {[%clk 0:01:47.1]} 26. Rxb1 {[%clk
0:01:43]} 26... Qxc3 {[%clk 0:01:47.4]} 27. Rbe1 {[%clk 0:01:41.3]} 27... Bxd4
{[%clk 0:01:28.7]} 28. Nxd4 {[%clk 0:01:32.5]} 28... Qxd4 {[%clk 0:01:15.3]} 29.
Re7 {[%clk 0:01:30.3]} 29... Qh8 {[%clk 0:01:11.2]} 30. Rxa7 {[%clk 0:01:23.5]}
30... Rde8 {[%clk 0:01:04.4]} 31. Rc1 {[%clk 0:01:06.8]} 31... Rf7 {[%clk
0:00:55.7]} 32. Rxf7 {[%clk 0:01:04]} 32... Kxf7 {[%clk 0:00:56.6]} 33. Rc7+
{[%clk 0:01:01.7]} 33... Re7 {[%clk 0:00:49.3]} 34. Rxe7+ {[%clk 0:01:01.3]}
34... Kxe7 {[%clk 0:00:50.2]} 35. Qe3+ {[%clk 0:01:01.4]} 35... Kd7 {[%clk
0:00:47.5]} 36. h3 {[%clk 0:00:56.6]} 36... Qa1+ {[%clk 0:00:46.3]} 37. Kh2
{[%clk 0:00:56.5]} 37... Kc6 {[%clk 0:00:44.2]} 38. a4 {[%clk 0:00:55.6]} 38...
Qf6 {[%clk 0:00:41.4]} 39. g3 {[%clk 0:00:50]} 39... Qb2 {[%clk 0:00:33.2]} 40.
Kg2 {[%clk 0:00:43.8]} 40... Qf6 {[%clk 0:00:32]} 41. Qd3 {[%clk 0:00:41.2]}
41... Qe5 {[%clk 0:00:31.1]} 42. Qc4+ {[%clk 0:00:39.5]} 42... Kd6 {[%clk
0:00:29.1]} 43. b4 {[%clk 0:00:37.7]} 43... Qb2 {[%clk 0:00:20.5]} 44. a5 {[%clk
0:00:32.8]} 44... bxa5 {[%clk 0:00:21.4]} 45. bxa5 {[%clk 0:00:32.8]} 45... Qb7+
{[%clk 0:00:21.9]} 46. Kg1 {[%clk 0:00:25.9]} 46... Qb1+ {[%clk 0:00:21.6]} 47.
Kh2 {[%clk 0:00:25]} 47... Qe1 {[%clk 0:00:21.2]} 48. Qd4+ {[%clk 0:00:24.8]}
48... Kc7 {[%clk 0:00:20.3]} 49. Qb6+ {[%clk 0:00:25.3]} 49... Kc8 {[%clk
0:00:19.2]} 50. a6 {[%clk 0:00:25.5]} 50... f4 {[%clk 0:00:19.3]} 51. gxf4
{[%clk 0:00:23.4]} 51... Qe4 {[%clk 0:00:18.2]} 52. Qb7+ {[%clk 0:00:20]} 52...
Kd8 {[%clk 0:00:17.6]} 53. Qxe4 {[%clk 0:00:19.1]} 1-0

[Event "*** SCC Grand Prix: Titled Tuesday Blitz"]
[Site "Chess.com"]
[Date "2020.07.21"]
[Round "8"]
[White "Boudicca64"]
[Black "Azoulas1"]
[Result "1-0"]
[WhiteElo "1796"]
[BlackElo "1996"]
[TimeControl "180+1"]
[EndTime "11:36:16 PDT"]
[Termination "Boudicca64 won on time"]

1. e4 {[%clk 0:03:00.9]} 1... c5 {[%clk 0:02:59.7]} 2. g3 {[%clk 0:02:59.4]}
2... e6 {[%clk 0:02:59.7]} 3. Bg2 {[%clk 0:02:58.7]} 3... Nc6 {[%clk 0:02:59.7]}
4. c3 {[%clk 0:02:57.9]} 4... Nf6 {[%clk 0:02:57.8]} 5. Ne2 {[%clk 0:02:57.1]}
5... d5 {[%clk 0:02:55.3]} 6. exd5 {[%clk 0:02:55.2]} 6... Nxd5 {[%clk
0:02:53.6]} 7. O-O {[%clk 0:02:52.6]} 7... Be7 {[%clk 0:02:51.1]} 8. d4 {[%clk
0:02:52.1]} 8... cxd4 {[%clk 0:02:49.6]} 9. cxd4 {[%clk 0:02:51.2]} 9... O-O
{[%clk 0:02:47.8]} 10. Nbc3 {[%clk 0:02:50.2]} 10... Nxc3 {[%clk 0:02:38.1]} 11.
bxc3 {[%clk 0:02:48.7]} 11... Qc7 {[%clk 0:02:33.6]} 12. Be3 {[%clk 0:02:46.5]}
12... Na5 {[%clk 0:02:31.1]} 13. Rc1 {[%clk 0:02:22.5]} 13... Nc4 {[%clk
0:02:28.2]} 14. Nf4 {[%clk 0:02:21.6]} 14... Bd7 {[%clk 0:02:10.8]} 15. d5
{[%clk 0:02:19.8]} 15... e5 {[%clk 0:02:09.1]} 16. Nd3 {[%clk 0:02:01.1]} 16...
Nxe3 {[%clk 0:02:07]} 17. fxe3 {[%clk 0:01:59.8]} 17... Bc5 {[%clk 0:02:06.4]}
18. Nxc5 {[%clk 0:01:54.3]} 18... Qxc5 {[%clk 0:02:05.2]} 19. Qf3 {[%clk
0:01:49.2]} 19... Bb5 {[%clk 0:01:59.5]} 20. Rf2 {[%clk 0:01:41.2]} 20... Rad8
{[%clk 0:01:57.4]} 21. e4 {[%clk 0:01:39.3]} 21... f6 {[%clk 0:01:52.8]} 22. Kh1
{[%clk 0:01:38]} 22... a5 {[%clk 0:01:49.4]} 23. Rd2 {[%clk 0:01:36.9]} 23...
Bc4 {[%clk 0:01:47.6]} 24. Rcd1 {[%clk 0:01:29.8]} 24... Rd6 {[%clk 0:01:45.6]}
25. Bh3 {[%clk 0:01:25.7]} 25... b5 {[%clk 0:01:39.9]} 26. Be6+ {[%clk
0:01:23.6]} 26... Kh8 {[%clk 0:01:37.8]} 27. Qh5 {[%clk 0:01:23]} 27... Qe3
{[%clk 0:01:24.1]} 28. Bf5 {[%clk 0:01:11.6]} 28... h6 {[%clk 0:01:13]} 29. Qg6
{[%clk 0:01:08.5]} 29... Qf3+ {[%clk 0:01:12]} 30. Kg1 {[%clk 0:01:05.6]} 30...
Qe3+ {[%clk 0:01:11.5]} 31. Kg2 {[%clk 0:01:04.3]} 31... Kg8 {[%clk 0:00:57.8]}
32. Qh7+ {[%clk 0:00:59.7]} 32... Kf7 {[%clk 0:00:56.3]} 33. Bg6+ {[%clk
0:00:53.3]} 33... Ke7 {[%clk 0:00:53.1]} 34. Qxg7+ {[%clk 0:00:53.1]} 34... Kd8
{[%clk 0:00:51.6]} 35. Qxf8+ {[%clk 0:00:52.5]} 35... Kc7 {[%clk 0:00:51.2]} 36.
Qe7+ {[%clk 0:00:51.4]} 36... Rd7 {[%clk 0:00:49.4]} 37. Qxf6 {[%clk 0:00:50.8]}
37... Be2 {[%clk 0:00:43.5]} 38. Qxe5+ {[%clk 0:00:46.1]} 38... Kb7 {[%clk
0:00:37.9]} 39. Qe6 {[%clk 0:00:22.2]} 39... Qf3+ {[%clk 0:00:34.2]} 40. Kh3
{[%clk 0:00:20.8]} 40... Rd6 {[%clk 0:00:18.8]} 41. Qe7+ {[%clk 0:00:16.9]}
41... Ka8 {[%clk 0:00:18.1]} 42. Qe8+ {[%clk 0:00:08.4]} 42... Ka7 {[%clk
0:00:12.4]} 43. Bh5 {[%clk 0:00:08.2]} 43... Qxh5+ {[%clk 0:00:02.3]} 44. Qxh5
{[%clk 0:00:07.3]} 44... Bxh5 {[%clk 0:00:02.9]} 45. Rf1 {[%clk 0:00:07.1]}
45... Bg6 {[%clk 0:00:02.1]} 46. Rf8 {[%clk 0:00:06.1]} 1-0

[Event "*** SCC Grand Prix: Titled Tuesday Blitz"]
[Site "Chess.com"]
[Date "2020.07.21"]
[Round "8"]
[White "djano"]
[Black "PauloCesarCosta_sad"]
[Result "1-0"]
[WhiteElo "2457"]
[BlackElo "2216"]
[TimeControl "180+1"]
[EndTime "11:36:17 PDT"]
[Termination "djano won on time"]

1. Nf3 {[%clk 0:03:00.9]} 1... Nf6 {[%clk 0:02:59.5]} 2. d4 {[%clk 0:02:57]}
2... d5 {[%clk 0:02:59.1]} 3. Bf4 {[%clk 0:02:56.4]} 3... e6 {[%clk 0:02:58.5]}
4. e3 {[%clk 0:02:56]} 4... Bd6 {[%clk 0:02:59]} 5. Ne5 {[%clk 0:02:55.6]} 5...
Ne4 {[%clk 0:02:33.4]} 6. Bd3 {[%clk 0:02:37.5]} 6... O-O {[%clk 0:02:33]} 7. f3
{[%clk 0:02:09.8]} 7... Nf6 {[%clk 0:02:26.1]} 8. Bg5 {[%clk 0:02:05.7]} 8... c5
{[%clk 0:02:16.1]} 9. c3 {[%clk 0:02:03.9]} 9... Nbd7 {[%clk 0:02:05.3]} 10. f4
{[%clk 0:02:01.6]} 10... Qb6 {[%clk 0:01:57.5]} 11. b3 {[%clk 0:01:36]} 11...
cxd4 {[%clk 0:01:51.5]} 12. Nxd7 {[%clk 0:01:24.1]} 12... Nxd7 {[%clk
0:01:44.5]} 13. cxd4 {[%clk 0:01:15.5]} 13... Qa5+ {[%clk 0:01:44.5]} 14. Nd2
{[%clk 0:01:02.5]} 14... Qc3 {[%clk 0:01:37.6]} 15. Ke2 {[%clk 0:00:56.1]} 15...
f6 {[%clk 0:01:36.9]} 16. Rc1 {[%clk 0:00:54.1]} 16... Qb4 {[%clk 0:01:35.1]}
17. Bh4 {[%clk 0:00:52.8]} 17... e5 {[%clk 0:01:29.3]} 18. dxe5 {[%clk
0:00:43.5]} 18... fxe5 {[%clk 0:01:29.3]} 19. a3 {[%clk 0:00:31.2]} 19... Qxa3
{[%clk 0:01:24.1]} 20. Qc2 {[%clk 0:00:25.5]} 20... e4 {[%clk 0:01:15.7]} 21.
Bb5 {[%clk 0:00:25.2]} 21... Qa5 {[%clk 0:01:04.8]} 22. Bxd7 {[%clk 0:00:23.4]}
22... Bxd7 {[%clk 0:01:04.9]} 23. Qb2 {[%clk 0:00:21.3]} 23... Bg4+ {[%clk
0:00:55.3]} 24. Ke1 {[%clk 0:00:18.7]} 24... Ba3 {[%clk 0:00:49.6]} 25. Qa1
{[%clk 0:00:18.4]} 25... Rfc8 {[%clk 0:00:40.1]} 26. Rxc8+ {[%clk 0:00:16.3]}
26... Rxc8 {[%clk 0:00:40.2]} 27. b4 {[%clk 0:00:10.5]} 27... Qxb4 {[%clk
0:00:34.9]} 28. Qa2 {[%clk 0:00:09.1]} 28... Rc1+ {[%clk 0:00:27.5]} 29. Kf2
{[%clk 0:00:08.5]} 29... Rxh1 {[%clk 0:00:27.9]} 30. Qxd5+ {[%clk 0:00:08.5]}
30... Kf8 {[%clk 0:00:24.8]} 31. Qd8+ {[%clk 0:00:08]} 31... Kf7 {[%clk
0:00:22.1]} 32. Qd5+ {[%clk 0:00:08.5]} 32... Be6 {[%clk 0:00:21]} 33. Qh5+
{[%clk 0:00:05.8]} 33... Kg8 {[%clk 0:00:14.2]} 34. Qe8+ {[%clk 0:00:05.5]}
34... Qf8 {[%clk 0:00:14.2]} 35. Qxe6+ {[%clk 0:00:05.7]} 35... Kh8 {[%clk
0:00:13.8]} 36. Qxe4 {[%clk 0:00:05.6]} 36... Bc5 {[%clk 0:00:09.3]} 37. Nf3
{[%clk 0:00:05.4]} 37... Ra1 {[%clk 0:00:07.9]} 38. Ng5 {[%clk 0:00:05.4]} 38...
Ra2+ {[%clk 0:00:07.9]} 39. Kf3 {[%clk 0:00:04.7]} 39... g6 {[%clk 0:00:04.2]}
40. Qe5+ {[%clk 0:00:05]} 40... Qg7 {[%clk 0:00:02.6]} 41. Qxc5 {[%clk
0:00:04.3]} 41... Ra6 {[%clk 0:00:01.3]} 42. Qc8+ {[%clk 0:00:04.1]} 42... Qg8
{[%clk 0:00:01.3]} 43. Qc3+ {[%clk 0:00:03.8]} 43... Qg7 {[%clk 0:00:01.1]} 44.
Nf7+ {[%clk 0:00:03.8]} 1-0

[Event "*** SCC Grand Prix: Titled Tuesday Blitz"]
[Site "Chess.com"]
[Date "2020.07.21"]
[Round "8"]
[White "MF1966Idrisov"]
[Black "szachuspl"]
[Result "0-1"]
[WhiteElo "2364"]
[BlackElo "2559"]
[TimeControl "180+1"]
[EndTime "11:36:18 PDT"]
[Termination "szachuspl won on time"]

1. Nf3 {[%clk 0:00:47]} 1... Nf6 {[%clk 0:02:58]} 2. b3 {[%clk 0:00:47.2]} 2...
g6 {[%clk 0:02:58]} 3. Bb2 {[%clk 0:00:47.8]} 3... Bg7 {[%clk 0:02:58.7]} 4. c4
{[%clk 0:00:48.5]} 4... O-O {[%clk 0:02:58.6]} 5. g3 {[%clk 0:00:49]} 5... b6
{[%clk 0:02:57.7]} 6. Bg2 {[%clk 0:00:49.5]} 6... Bb7 {[%clk 0:02:58.4]} 7. O-O
{[%clk 0:00:49.1]} 7... d6 {[%clk 0:02:59]} 8. d4 {[%clk 0:00:49.5]} 8... Nbd7
{[%clk 0:02:58]} 9. Nc3 {[%clk 0:00:49.9]} 9... e5 {[%clk 0:02:57]} 10. dxe5
{[%clk 0:00:50]} 10... dxe5 {[%clk 0:02:55]} 11. Qc2 {[%clk 0:00:50.2]} 11...
Re8 {[%clk 0:02:53.5]} 12. Rfd1 {[%clk 0:00:50.2]} 12... h6 {[%clk 0:02:49.1]}
13. Nd5 {[%clk 0:00:50.3]} 13... Nxd5 {[%clk 0:02:47.4]} 14. cxd5 {[%clk
0:00:50.4]} 14... Rc8 {[%clk 0:02:46]} 15. e4 {[%clk 0:00:50.5]} 15... f6 {[%clk
0:02:43.6]} 16. Qe2 {[%clk 0:00:49.5]} 16... Bf8 {[%clk 0:02:42.6]} 17. Rac1
{[%clk 0:00:48.6]} 17... Kg7 {[%clk 0:02:42.2]} 18. a3 {[%clk 0:00:48.6]} 18...
Bd6 {[%clk 0:02:41.5]} 19. b4 {[%clk 0:00:48.2]} 19... Ra8 {[%clk 0:02:40.7]}
20. Bc3 {[%clk 0:00:48.1]} 20... a6 {[%clk 0:02:33.9]} 21. Bd2 {[%clk 0:00:48]}
21... Qe7 {[%clk 0:02:30.8]} 22. Qe3 {[%clk 0:00:47.9]} 22... Rh8 {[%clk
0:02:30.3]} 23. Nh4 {[%clk 0:00:47.2]} 23... a5 {[%clk 0:02:15.7]} 24. Qf3
{[%clk 0:00:44.6]} 24... Kh7 {[%clk 0:01:59.4]} 25. Qg4 {[%clk 0:00:43.5]} 25...
Rhg8 {[%clk 0:01:56.6]} 26. Bh3 {[%clk 0:00:42.9]} 26... Nf8 {[%clk 0:01:53.1]}
27. Qf3 {[%clk 0:00:37.1]} 27... axb4 {[%clk 0:01:49.7]} 28. axb4 {[%clk
0:00:36.5]} 28... Rg7 {[%clk 0:01:47.6]} 29. Qe3 {[%clk 0:00:33.8]} 29... h5
{[%clk 0:01:45.6]} 30. Qh6+ {[%clk 0:00:27.9]} 30... Kg8 {[%clk 0:01:45.4]} 31.
Be6+ {[%clk 0:00:27.1]} 31... Nxe6 {[%clk 0:01:44.4]} 32. dxe6 {[%clk
0:00:27.3]} 32... Qe8 {[%clk 0:01:39.7]} 33. f3 {[%clk 0:00:23.6]} 33... Bc8
{[%clk 0:01:37]} 34. f4 {[%clk 0:00:18.4]} 34... Bxe6 {[%clk 0:01:27.4]} 35. f5
{[%clk 0:00:18]} 35... gxf5 {[%clk 0:01:23.4]} 36. exf5 {[%clk 0:00:17.9]} 36...
Bb3 {[%clk 0:01:20.9]} 37. Ng6 {[%clk 0:00:17.4]} 37... Bxd1 {[%clk 0:01:18]}
38. Rxd1 {[%clk 0:00:13.3]} 38... Rh7 {[%clk 0:00:52.3]} 39. Qe3 {[%clk
0:00:13]} 39... Ra2 {[%clk 0:00:42.1]} 40. Qe4 {[%clk 0:00:12.9]} 40... Qa8
{[%clk 0:00:37.1]} 41. Qc4+ {[%clk 0:00:11.9]} 41... Kg7 {[%clk 0:00:35.1]} 42.
Qe6 {[%clk 0:00:11.5]} 42... Rxd2 {[%clk 0:00:25.4]} 43. Rxd2 {[%clk 0:00:10.5]}
43... Qc6 {[%clk 0:00:24.9]} 44. Rc2 {[%clk 0:00:08.3]} 44... Qxc2 {[%clk
0:00:19.7]} 45. Qe8 {[%clk 0:00:02.8]} 45... Qxf5 {[%clk 0:00:17.4]} 46. Nh4
{[%clk 0:00:02.3]} 46... Qb1+ {[%clk 0:00:16.8]} 47. Kg2 {[%clk 0:00:02]} 47...
Qa2+ {[%clk 0:00:17.3]} 48. Kh3 {[%clk 0:00:02.1]} 48... Qf7 {[%clk 0:00:17.8]}
49. Qc8 {[%clk 0:00:01.8]} 49... f5 {[%clk 0:00:18.3]} 50. Nxf5+ {[%clk
0:00:01.7]} 50... Kf6 {[%clk 0:00:18]} 51. Nh4 {[%clk 0:00:01.8]} 51... Qe6+
{[%clk 0:00:18.4]} 0-1

[Event "*** SCC Grand Prix: Titled Tuesday Blitz"]
[Site "Chess.com"]
[Date "2020.07.21"]
[Round "8"]
[White "Makswolf200817"]
[Black "AnthonyWirig"]
[Result "0-1"]
[WhiteElo "2479"]
[BlackElo "2700"]
[TimeControl "180+1"]
[EndTime "11:36:19 PDT"]
[Termination "AnthonyWirig won by resignation"]

1. Nf3 {[%clk 0:03:00.9]} 1... c5 {[%clk 0:02:58.8]} 2. c4 {[%clk 0:03:00.4]}
2... g6 {[%clk 0:02:59.1]} 3. g3 {[%clk 0:02:59.6]} 3... Bg7 {[%clk 0:02:59.3]}
4. Bg2 {[%clk 0:03:00]} 4... Nc6 {[%clk 0:03:00]} 5. O-O {[%clk 0:02:59.9]} 5...
d6 {[%clk 0:03:00.7]} 6. Nc3 {[%clk 0:02:59.7]} 6... Bf5 {[%clk 0:03:01.3]} 7.
d3 {[%clk 0:02:54.6]} 7... Qd7 {[%clk 0:03:01.7]} 8. Rb1 {[%clk 0:02:42]} 8...
Bh3 {[%clk 0:03:01.2]} 9. a3 {[%clk 0:02:40.3]} 9... Bxg2 {[%clk 0:02:46.2]} 10.
Kxg2 {[%clk 0:02:41.2]} 10... Bxc3 {[%clk 0:02:46.6]} 11. bxc3 {[%clk 0:02:40]}
11... f5 {[%clk 0:02:47.2]} 12. h4 {[%clk 0:02:27.5]} 12... h6 {[%clk
0:02:45.4]} 13. Qb3 {[%clk 0:02:16.9]} 13... b6 {[%clk 0:02:34.1]} 14. Bf4
{[%clk 0:01:58.1]} 14... Nf6 {[%clk 0:02:29.1]} 15. Qb5 {[%clk 0:01:55]} 15...
Kf7 {[%clk 0:02:03.6]} 16. Rfe1 {[%clk 0:01:40.7]} 16... e5 {[%clk 0:01:50.7]}
17. Bc1 {[%clk 0:01:31.2]} 17... e4 {[%clk 0:01:50.3]} 18. Nh2 {[%clk
0:01:22.8]} 18... Ne5 {[%clk 0:01:37.4]} 19. Qxd7+ {[%clk 0:01:17.2]} 19...
Nexd7 {[%clk 0:01:29.2]} 20. Bf4 {[%clk 0:01:03.1]} 20... Ne5 {[%clk 0:01:20.6]}
21. Rbd1 {[%clk 0:01:00]} 21... exd3 {[%clk 0:01:05.4]} 22. exd3 {[%clk
0:00:59.4]} 22... Rae8 {[%clk 0:01:03.7]} 23. Nf3 {[%clk 0:00:49.6]} 23... Nfg4
{[%clk 0:00:51.5]} 24. Nxe5+ {[%clk 0:00:36.3]} 24... dxe5 {[%clk 0:00:50.8]}
25. Bc1 {[%clk 0:00:35.1]} 25... Re6 {[%clk 0:00:47.7]} 26. f3 {[%clk
0:00:34.9]} 26... Nf6 {[%clk 0:00:47.2]} 27. Re2 {[%clk 0:00:34.1]} 27... Kg7
{[%clk 0:00:43.9]} 28. d4 {[%clk 0:00:32.6]} 28... cxd4 {[%clk 0:00:40.4]} 29.
cxd4 {[%clk 0:00:33.5]} 29... e4 {[%clk 0:00:40.3]} 30. d5 {[%clk 0:00:29.3]}
30... exf3+ {[%clk 0:00:40.5]} 31. Kxf3 {[%clk 0:00:30.2]} 31... Rxe2 {[%clk
0:00:40.9]} 32. Kxe2 {[%clk 0:00:31.1]} 32... Re8+ {[%clk 0:00:41]} 33. Kf3
{[%clk 0:00:31]} 33... Ne4 {[%clk 0:00:41.7]} 34. Bb2+ {[%clk 0:00:30.9]} 34...
Kf7 {[%clk 0:00:42]} 35. g4 {[%clk 0:00:27.3]} 35... fxg4+ {[%clk 0:00:40.7]}
36. Kf4 {[%clk 0:00:27.2]} 36... g3 {[%clk 0:00:31.8]} 37. Re1 {[%clk
0:00:22.6]} 37... g5+ {[%clk 0:00:22.3]} 38. hxg5 {[%clk 0:00:21.9]} 38... hxg5+
{[%clk 0:00:23.2]} 39. Kg4 {[%clk 0:00:07.4]} 39... Nf2+ {[%clk 0:00:19.8]} 40.
Kxg3 {[%clk 0:00:07.4]} 40... Rxe1 {[%clk 0:00:20]} 41. Kxf2 {[%clk 0:00:07.8]}
41... Rb1 {[%clk 0:00:18.3]} 42. Bd4 {[%clk 0:00:07.5]} 42... Rb3 {[%clk
0:00:16.1]} 43. c5 {[%clk 0:00:06.7]} 43... bxc5 {[%clk 0:00:09.6]} 44. Bxc5
{[%clk 0:00:06.6]} 44... a6 {[%clk 0:00:09.4]} 45. Bb4 {[%clk 0:00:04.7]} 45...
Rd3 {[%clk 0:00:08.3]} 46. d6 {[%clk 0:00:04.2]} 46... Ke6 {[%clk 0:00:08.8]}
47. Ke2 {[%clk 0:00:04.1]} 47... Rd5 {[%clk 0:00:09]} 48. Kf3 {[%clk 0:00:03.8]}
48... a5 {[%clk 0:00:09.5]} 49. Bd2 {[%clk 0:00:02.1]} 49... Rxd2 {[%clk
0:00:09.3]} 0-1

[Event "*** SCC Grand Prix: Titled Tuesday Blitz"]
[Site "Chess.com"]
[Date "2020.07.21"]
[Round "8"]
[White "Shivagami"]
[Black "Joseacorrea"]
[Result "0-1"]
[WhiteElo "2202"]
[BlackElo "1999"]
[TimeControl "180+1"]
[EndTime "11:36:19 PDT"]
[Termination "Joseacorrea won on time"]

1. d4 {[%clk 0:03:00.9]} 1... e6 {[%clk 0:02:59.2]} 2. c4 {[%clk 0:03:00.9]}
2... f5 {[%clk 0:02:59.2]} 3. Nc3 {[%clk 0:02:58.3]} 3... Nf6 {[%clk 0:02:59.2]}
4. g3 {[%clk 0:02:51.3]} 4... d5 {[%clk 0:02:53.2]} 5. Bg2 {[%clk 0:02:48.3]}
5... c6 {[%clk 0:02:53.5]} 6. Nf3 {[%clk 0:02:48.3]} 6... Bd6 {[%clk 0:02:53.5]}
7. O-O {[%clk 0:02:43.6]} 7... O-O {[%clk 0:02:53.3]} 8. b3 {[%clk 0:02:40.4]}
8... Nbd7 {[%clk 0:02:52.8]} 9. Bb2 {[%clk 0:02:39.3]} 9... Ne4 {[%clk
0:02:52.8]} 10. e3 {[%clk 0:02:37.2]} 10... Qf6 {[%clk 0:02:49.7]} 11. Ne2
{[%clk 0:02:32.2]} 11... g5 {[%clk 0:02:41]} 12. Nd2 {[%clk 0:02:13.3]} 12...
Qh6 {[%clk 0:02:36.3]} 13. f4 {[%clk 0:02:10]} 13... g4 {[%clk 0:02:28.5]} 14.
cxd5 {[%clk 0:01:55.2]} 14... exd5 {[%clk 0:02:27.9]} 15. Nxe4 {[%clk
0:01:54.3]} 15... dxe4 {[%clk 0:02:22.9]} 16. d5 {[%clk 0:01:51.3]} 16... Nc5
{[%clk 0:02:07.8]} 17. Qd4 {[%clk 0:01:48.1]} 17... Nd3 {[%clk 0:01:58.8]} 18.
Bc3 {[%clk 0:01:12.9]} 18... Bc5 {[%clk 0:01:55]} 19. Qc4 {[%clk 0:01:03.8]}
19... Bxe3+ {[%clk 0:01:51.8]} 20. Kh1 {[%clk 0:01:03.7]} 20... cxd5 {[%clk
0:01:41.8]} 21. Qxd5+ {[%clk 0:01:00.2]} 21... Be6 {[%clk 0:01:41.5]} 22. Qxb7
{[%clk 0:00:59.3]} 22... Rac8 {[%clk 0:01:25.8]} 23. Rad1 {[%clk 0:00:25.3]}
23... Rf7 {[%clk 0:01:01.1]} 24. Qb5 {[%clk 0:00:19.8]} 24... Nf2+ {[%clk
0:00:47.4]} 25. Rxf2 {[%clk 0:00:19.5]} 25... Bxf2 {[%clk 0:00:48.3]} 26. Rd6
{[%clk 0:00:17.6]} 26... Rxc3 {[%clk 0:00:23.2]} 27. Qe8+ {[%clk 0:00:09.5]}
27... Rf8 {[%clk 0:00:17.9]} 28. Qxe6+ {[%clk 0:00:07.3]} 28... Qxe6 {[%clk
0:00:17.8]} 29. Rxe6 {[%clk 0:00:07.6]} 29... Rc2 {[%clk 0:00:17.3]} 30. Bf1
{[%clk 0:00:06.5]} 30... Rxa2 {[%clk 0:00:14.9]} 31. Kg2 {[%clk 0:00:06.6]}
31... Bc5 {[%clk 0:00:13.3]} 32. h3 {[%clk 0:00:04.3]} 32... gxh3+ {[%clk
0:00:12.8]} 33. Kxh3 {[%clk 0:00:05.2]} 33... a5 {[%clk 0:00:11.8]} 34. Nc3
{[%clk 0:00:04.4]} 34... Bb4 {[%clk 0:00:11.8]} 35. Nd5 {[%clk 0:00:04.1]} 35...
Ra1 {[%clk 0:00:11.8]} 36. Bc4 {[%clk 0:00:04.5]} 36... Kh8 {[%clk 0:00:10.5]}
37. Nc7 {[%clk 0:00:04.1]} 37... a4 {[%clk 0:00:09.9]} 38. bxa4 {[%clk
0:00:03.9]} 38... Rxa4 {[%clk 0:00:09.5]} 39. Rh6 {[%clk 0:00:03.9]} 39... Ra1
{[%clk 0:00:08.2]} 40. Kh2 {[%clk 0:00:02.7]} 40... Rc1 {[%clk 0:00:07.9]} 41.
Rc6 {[%clk 0:00:01]} 41... e3 {[%clk 0:00:08.3]} 42. Bd5 {[%clk 0:00:01.3]}
42... e2 {[%clk 0:00:08.4]} 43. Rxc1 {[%clk 0:00:01.1]} 43... e1=Q {[%clk
0:00:07.6]} 44. Rxe1 {[%clk 0:00:01.7]} 44... Bxe1 {[%clk 0:00:08]} 45. Be6
{[%clk 0:00:02.4]} 45... Re8 {[%clk 0:00:07.5]} 46. Bd7 {[%clk 0:00:02.3]} 46...
Re7 {[%clk 0:00:07.6]} 0-1